fUST/lending_fUST_20250816
["ID","MTS","AMOUNT","RATE_DAILY","PERIOD"]
[379443466,1755280248283,-1905.51955852,0.00022078,2]
[379443467,1755280248292,-3000.0,0.0002208,2]
[379443468,1755280248302,-3000.0,0.0002209,2]
[379443469,1755280248312,-3000.0,0.000221,2]
[379443470,1755280248321,-3000.0,0.0002211,2]
[379443471,1755280248331,-3000.0,0.0002212,2]
[379443472,1755280248341,-3000.0,0.0002213,2]
[379443473,1755280248351,-3000.0,0.0002214,2]
[379443474,1755280248360,-3000.0,0.0002215,2]
[379443475,1755280248370,-3000.0,0.0002216,2]
[379443476,1755280248379,-176.887213,0.0002216,7]
[379443477,1755280248389,-176.887213,0.0002216,7]
[379443478,1755280248398,-354.651898,0.0002216,7]
[379443479,1755280248408,-354.651898,0.0002216,7]
[379443480,1755280248417,-151.0,0.0002216,7]
[379443481,1755280248426,-184.784549,0.0002216,7]
[379443482,1755280248436,-184.784549,0.0002216,7]
[379443483,1755280248445,-151.0,0.0002216,7]
[379443484,1755280248455,-151.0,0.0002216,7]
[379443485,1755280248465,-151.0,0.0002216,7]
[379443486,1755280248477,-2500.0,0.00022164,2]
[379443487,1755280248486,-550.0,0.00022164,2]
[379443488,1755280248496,-1500.0,0.00022164,2]
[379443489,1755280248506,-2500.0,0.00022164,2]
[379443490,1755280248515,-3730.253675,0.0002217,2]
[379443491,1755280248525,-150.2,0.0002218,4]
[379443492,1755280248535,-200.0,0.00022192,7]
[379443493,1755280248545,-160.0,0.000222,7]
[379443494,1755280248562,-215.63758983,0.000222,7]
[379443495,1755280248571,-462.0440047,0.000222,7]
[379443496,1755280248581,-860.0,0.0002235,2]
[379443497,1755280248591,-300.0,0.00022466,2]
[379443498,1755280248602,-16461.0398979,0.00022481,2]
[379443499,1755280248612,-250.0,0.00022521,2]
[379443500,1755280248622,-3500.0,0.00022588,2]
[379443501,1755280248631,-200.0,0.00022603,2]
[379443502,1755280248641,-3000.0,0.00022712,2]
[379443503,1755280248651,-650.0,0.00022712,2]
[379443504,1755280248660,-1667.10457153,0.00022712,2]
[379443505,1755280248670,-168.0,0.00022728,2]
[379443506,1755280248679,-150.2,0.00022773,4]
[379443507,1755280248689,-960.0,0.00022898,2]
[379443508,1755280248699,-16461.0398979,0.00022997,2]
[379443509,1755280248709,-176.887213,0.00022997,7]
[379443510,1755280248720,-176.887205,0.00022997,7]
[379443511,1755280248730,-354.651898,0.00022997,7]
[379443512,1755280248741,-354.651898,0.00022997,7]
[379443513,1755280248751,-151.0,0.00022997,7]
[379443514,1755280248760,-184.784549,0.00022997,7]
[379443515,1755280248770,-184.784549,0.00022997,7]
[379443516,1755280248779,-151.0,0.00022997,7]
[379443517,1755280248789,-249.769492,0.00022997,7]
[379443518,1755280248798,-151.0,0.00022997,7]
[379443519,1755280248807,-450.0,0.00023014,2]
[379443520,1755280248817,-200.0,0.00023014,7]
[379443521,1755280248826,-972.0,0.00023064,2]
[379443522,1755280248836,-408.0,0.00023064,2]
[379443523,1755280248845,-2152.0,0.00023064,2]
[379443524,1755280248854,-636.0,0.00023064,2]
[379443525,1755280248863,-350.0,0.00023068,2]
[379443526,1755280248872,-4000.0,0.00023136,2]
[379443527,1755280248881,-1700.0,0.00023145,2]
[379443528,1755280248891,-2928.10060781,0.0002326,2]
[379443529,1755280248900,-750.0,0.0002326,2]
[379443530,1755280248910,-2000.0,0.0002326,2]
[379443531,1755280248919,-182.526978,0.00023288,2]
[379443532,1755280248929,-172.082066,0.00023353,2]
[379443533,1755280248939,-150.2,0.00023366,5]
[379443534,1755280248948,-151.0,0.00023367,2]
[379443535,1755280248957,-1905.51955852,0.00023388,2]
[379443536,1755280248967,-156.560358,0.00023422,3]
[379443537,1755280248980,-172.082066,0.00023422,3]
[379443538,1755280248989,-1060.0,0.00023446,2]
[379443539,1755280248999,-42001.81476363,0.000235,14]
[379443540,1755280249009,-354.651898,0.000235,7]
[379443541,1755280249019,-354.651898,0.000235,7]
[379443542,1755280249028,-184.784549,0.000235,7]
[379443543,1755280249037,-184.784549,0.000235,7]
[379443544,1755280249046,-151.0,0.000235,7]
[379443545,1755280249058,-151.0,0.000235,7]
[379443546,1755280249068,-16461.0398979,0.00023513,2]
[379443547,1755280249078,-600.0,0.00023562,2]
[379443548,1755280249088,-18194.97,0.000236,7]
[379443549,1755280249097,-538.55518668,0.00023616,2]
[379443550,1755280249107,-4500.0,0.00023684,2]
[379443551,1755280249116,-232.111669,0.000237,10]
[379443552,1755280249125,-168.0,0.00023719,2]
[379443553,1755280249135,-865.71472338,0.00023734,2]
[379443554,1755280249144,-686.36,0.00023746,2]
[379443555,1755280249153,-7878.00398274,0.00023747,2]
[379443556,1755280249163,-177.59475323,0.00023756,2]
[379443557,1755280249171,-865.71472338,0.00023757,2]
[379443558,1755280249181,-1775.94753238,0.00023766,2]
[379443559,1755280249191,-7878.00398274,0.00023772,2]
[379443560,1755280249200,-177.59475323,0.00023781,2]
[379443561,1755280249210,-1775.94753238,0.00023798,2]
[379443562,1755280249219,-850.0,0.00023808,2]
[379443563,1755280249228,-28707.74,0.000239,2]
[379443564,1755280249238,-354.651898,0.000239,7]
[379443565,1755280249247,-354.651898,0.000239,7]
[379443566,1755280249256,-184.784549,0.000239,7]
[379443567,1755280249266,-184.784549,0.000239,7]
[379443568,1755280249275,-151.0,0.000239,7]
[379443569,1755280249284,-151.0,0.000239,7]
[379443570,1755280249294,-150.2,0.0002396,5]
[379443571,1755280249303,-1160.0,0.00023994,2]
[379443572,1755280249312,-232.08354597,0.00024,7]
[379443573,1755280249321,-528.28344625,0.00024,7]
[379443574,1755280249331,-160.0,0.00024,7]
[379443575,1755280249340,-160.0,0.00024,7]
[379443576,1755280249350,-216.77912109,0.00024,7]
[379443577,1755280249359,-160.0,0.00024,7]
[379443578,1755280249368,-843.47195277,0.00024,7]
[379443579,1755280249378,-417.15472785,0.00024,7]
[379443580,1755280249387,-16461.0398979,0.00024029,2]
[379443581,1755280249398,-200.0,0.00024044,20]
[379443582,1755280249411,-200.0,0.00024044,20]
[379443583,1755280249421,-200.0,0.00024044,20]
[379443584,1755280249431,-200.0,0.00024044,20]
[379443585,1755280249440,-200.0,0.00024044,20]
[379443586,1755280249449,-200.0,0.00024044,20]
[379443587,1755280249459,-200.0,0.00024044,20]
[379443588,1755280249468,-200.0,0.00024044,20]
[379443589,1755280249477,-200.0,0.00024044,20]
[379443590,1755280249487,-200.0,0.00024044,20]
[379443591,1755280249496,-200.0,0.00024044,20]
[379443592,1755280249506,-200.0,0.00024044,20]
[379443593,1755280249515,-200.0,0.00024044,20]
[379443594,1755280249525,-200.0,0.00024044,20]
[379443595,1755280249535,-200.0,0.00024044,20]
[379443596,1755280249545,-292.0,0.00024044,20]
[379443597,1755280249555,-5588.52,0.000241,7]
[379443598,1755280249565,-750.0,0.0002411,2]
[379443599,1755280249576,-204.0,0.00024164,7]
[379443600,1755280249586,-175.75,0.000242,7]
[379443601,1755280249603,-5000.0,0.00024232,2]
[379443602,1755280249615,-1700.0,0.00024241,2]
[379443603,1755280249624,-200.0,0.0002427,10]
[379443604,1755280249634,-950.0,0.00024356,2]
[379443605,1755280249647,-515.41597569,0.00024356,2]
[379443606,1755280249657,-151.0,0.00024485,7]
[379443607,1755280249668,-156.560358,0.000245,30]
[379443608,1755280249677,-172.082066,0.000245,30]
[379443609,1755280249687,-1000.0,0.000245,2]
[379443610,1755280249697,-1000.0,0.000245,2]
[379443611,1755280249708,-645.0,0.000245,2]
[379443612,1755280249717,-1260.0,0.00024542,2]
[379443613,1755280249727,-354.651898,0.00024545,7]
[379443614,1755280249736,-354.651898,0.00024545,7]
[379443615,1755280249745,-184.784549,0.00024545,7]
[379443616,1755280249754,-184.784545,0.00024545,7]
[379443617,1755280249763,-151.0,0.00024545,7]
[379443618,1755280249772,-16461.0398979,0.00024545,2]
[379443619,1755280249781,-150.2,0.00024553,5]
[379443620,1755280249790,-153.0,0.00024603,2]
[379443621,1755280249799,-153.0,0.00024603,2]
[379443622,1755280249807,-153.0,0.00024603,2]
[379443623,1755280249816,-153.0,0.00024603,2]
[379443624,1755280249825,-153.0,0.00024603,2]
[379443625,1755280249834,-153.0,0.00024603,2]
[379443626,1755280249843,-153.0,0.00024603,2]
[379443627,1755280249852,-153.0,0.00024603,2]
[379443628,1755280249861,-153.0,0.00024603,2]
[379443629,1755280249870,-153.0,0.00024603,2]
[379443630,1755280249879,-153.0,0.00024603,2]
[379443631,1755280249888,-153.0,0.00024603,2]
[379443632,1755280249897,-153.0,0.00024603,2]
[379443633,1755280249906,-153.0,0.00024603,2]
[379443634,1755280249915,-153.0,0.00024603,2]
[379443635,1755280249924,-153.0,0.00024603,2]
[379443636,1755280249933,-153.0,0.00024603,2]
[379443637,1755280249941,-153.0,0.00024603,2]
[379443638,1755280249950,-153.0,0.00024603,2]
[379443639,1755280249959,-153.0,0.00024603,2]
[379443640,1755280249968,-153.0,0.00024603,2]
[379443641,1755280249981,-153.0,0.00024603,2]
[379443642,1755280249990,-153.0,0.00024603,2]
[379443643,1755280249999,-153.0,0.00024603,2]
[379443644,1755280250008,-153.0,0.00024603,2]
[379443645,1755280250018,-153.0,0.00024603,2]
[379443646,1755280250027,-153.0,0.00024603,2]
[379443647,1755280250035,-153.0,0.00024603,2]
[379443648,1755280250045,-153.0,0.00024603,2]
[379443649,1755280250054,-153.0,0.00024603,2]
[379443650,1755280250063,-153.0,0.00024603,2]
[379443651,1755280250073,-153.0,0.00024603,2]
[379443652,1755280250082,-153.0,0.00024603,2]
[379443653,1755280250091,-153.0,0.00024603,2]
[379443654,1755280250100,-153.0,0.00024603,2]
[379443655,1755280250109,-153.0,0.00024603,2]
[379443656,1755280250119,-153.0,0.00024603,2]
[379443657,1755280250128,-153.0,0.00024603,2]
[379443658,1755280250137,-153.0,0.00024603,2]
[379443659,1755280250146,-153.0,0.00024603,2]
[379443660,1755280250155,-500.0,0.00024657,60]
[379443661,1755280250165,-500.0,0.00024657,60]
[379443662,1755280250174,-503.87850505,0.00024657,60]
[379443663,1755280250183,-506.04593218,0.00024657,60]
[379443664,1755280250192,-500.0,0.00024657,60]
[379443665,1755280250228,-500.0,0.00024657,60]
[379443666,1755280250238,-500.0,0.00024657,60]
[379443667,1755280250247,-500.0,0.00024657,60]
[379443668,1755280250256,-500.0,0.00024657,60]
[379443669,1755280250265,-500.0,0.00024657,60]
[379443670,1755280250274,-496.02,0.00024657,60]
[379443671,1755280250283,-500.0,0.00024657,60]
[379443672,1755280250292,-500.0,0.00024657,60]
[379443673,1755280250302,-500.0,0.00024657,60]
[379443674,1755280250312,-500.0,0.00024657,60]
[379443675,1755280250322,-500.0,0.00024657,60]
[379443676,1755280250331,-500.0,0.00024657,60]
[379443677,1755280250341,-500.0,0.00024657,60]
[379443678,1755280250350,-500.0,0.00024657,60]
[379443679,1755280250360,-500.0,0.00024657,60]
[379443680,1755280250370,-500.0,0.00024657,60]
[379443681,1755280250379,-500.0,0.00024657,60]
[379443682,1755280250389,-441.37,0.00024657,60]
[379443683,1755280250398,-460.0,0.00024657,2]
[379443684,1755280250407,-900.0,0.00024658,2]
[379443685,1755280250417,-200.0,0.00024658,15]
[379443686,1755280250427,-380.0,0.00024658,2]
[379443687,1755280250437,-200.0,0.00024658,2]
[379443688,1755280250447,-151.0,0.00024658,2]
[379443689,1755280250456,-699.0,0.00024658,2]
[379443690,1755280250465,-938.16,0.00024659,7]
[379443691,1755280250475,-938.168,0.00024659,7]
[379443692,1755280250484,-153.0,0.00024696,2]
[379443693,1755280250494,-153.0,0.00024696,2]
[379443694,1755280250503,-153.0,0.00024696,2]
[379443695,1755280250512,-153.0,0.00024696,2]
[379443696,1755280250521,-153.0,0.00024696,2]
[379443697,1755280250530,-153.0,0.00024696,2]
[379443698,1755280250539,-153.0,0.00024696,2]
[379443699,1755280250549,-153.0,0.00024696,2]
[379443700,1755280250558,-153.0,0.00024696,2]
[379443701,1755280250567,-153.0,0.00024696,2]
[379443702,1755280250576,-153.0,0.00024696,2]
[379443703,1755280250585,-153.0,0.00024696,2]
[379443704,1755280250595,-153.0,0.00024696,2]
[379443705,1755280250604,-153.0,0.00024696,2]
[379443706,1755280250613,-153.0,0.00024696,2]
[379443707,1755280250622,-153.0,0.00024696,2]
[379443708,1755280250632,-153.0,0.00024696,2]
[379443709,1755280250641,-153.0,0.00024696,2]
[379443710,1755280250651,-153.0,0.00024696,2]
[379443711,1755280250660,-153.0,0.00024696,2]
[379443712,1755280250669,-153.0,0.00024696,2]
[379443713,1755280250679,-153.0,0.00024696,2]
[379443714,1755280250688,-153.0,0.00024696,2]
[379443715,1755280250697,-153.0,0.00024696,2]
[379443716,1755280250706,-153.0,0.00024696,2]
[379443717,1755280250715,-153.0,0.00024696,2]
[379443718,1755280250725,-153.0,0.00024696,2]
[379443719,1755280250734,-153.0,0.00024696,2]
[379443720,1755280250743,-153.0,0.00024696,2]
[379443721,1755280250752,-153.0,0.00024696,2]
[379443722,1755280250761,-153.0,0.00024696,2]
[379443723,1755280250770,-153.0,0.00024696,2]
[379443724,1755280250779,-153.0,0.00024696,2]
[379443725,1755280250788,-153.0,0.00024696,2]
[379443726,1755280250797,-153.0,0.00024696,2]
[379443727,1755280250806,-153.0,0.00024696,2]
[379443728,1755280250815,-153.0,0.00024696,2]
[379443729,1755280250824,-153.0,0.00024696,2]
[379443730,1755280250833,-153.0,0.00024696,2]
[379443731,1755280250842,-153.0,0.00024696,2]
[379443732,1755280250852,-153.0,0.00024696,2]
[379443733,1755280250861,-153.0,0.00024696,2]
[379443734,1755280250870,-153.0,0.00024696,2]
[379443735,1755280250879,-153.0,0.00024696,2]
[379443736,1755280250888,-153.0,0.00024696,2]
[379443737,1755280250897,-153.0,0.00024696,2]
[379443738,1755280250906,-153.0,0.00024696,2]
[379443739,1755280250915,-153.0,0.00024696,2]
[379443740,1755280250924,-153.0,0.00024696,2]
[379443741,1755280250933,-153.0,0.00024696,2]
[379443742,1755280250942,-1905.51955852,0.00024699,2]
[379443743,1755280250951,-295.97,0.00024711,2]
[379443744,1755280250960,-938.16,0.00024759,7]
[379443745,1755280250970,-4059.56846787,0.00024759,2]
[379443746,1755280250981,-5500.0,0.00024779,2]
[379443747,1755280250991,-1334.00125173,0.00024789,8]
[379443748,1755280251000,-2000.0,0.000248,2]
[379443749,1755280251009,-151.0,0.000248,7]
[379443750,1755280251019,-154.213001,0.000248,7]
[379443751,1755280251028,-151.0,0.000248,7]
[379443752,1755280251037,-392491.279291,0.000248,2]
[379443753,1755280251048,-938.16,0.00024859,7]
[379443754,1755280251059,-151.0,0.000249,7]
[379443755,1755280251068,-151.0,0.000249,7]
[379443756,1755280251077,-151.0,0.000249,7]
[379443757,1755280251086,-151.0,0.000249,7]
[379443758,1755280251096,-151.0,0.000249,7]
[379443759,1755280251105,-151.0,0.000249,7]
[379443760,1755280251115,-151.0,0.000249,7]
[379443761,1755280251124,-151.0,0.000249,7]
[379443762,1755280251133,-151.0,0.000249,7]
[379443763,1755280251142,-151.0,0.000249,7]
[379443764,1755280251152,-449.375021,0.000249,7]
[379443765,1755280251162,-151.0,0.000249,7]
[379443766,1755280251171,-151.0,0.000249,7]
[379443767,1755280251181,-151.0,0.000249,7]
[379443768,1755280251190,-322.102412,0.000249,7]
[379443769,1755280251199,-322.102412,0.000249,7]
[379443770,1755280251209,-151.0,0.000249,7]
[379443771,1755280251219,-151.0,0.000249,7]
[379443772,1755280251230,-168.336471,0.000249,7]
[379443773,1755280251239,-151.0,0.000249,7]
[379443774,1755280251248,-354.651898,0.000249,7]
[379443775,1755280251258,-354.651894,0.000249,7]
[379443776,1755280251268,-444.753543,0.000249,7]
[379443777,1755280251277,-444.753543,0.000249,7]
[379443778,1755280251287,-151.0,0.000249,7]
[379443779,1755280251298,-250.0,0.000249,2]
[379443780,1755280251308,-250.0,0.000249,2]
[379443781,1755280251317,-162739.08475966,0.000249,2]
[379443782,1755280251400,465.00350757,0.00027421,60]
[379443783,1755280251449,460.0,0.00027421,60]
[379443784,1755280251502,460.0,0.00027421,60]
[379443785,1755280251553,460.0,0.00027421,60]
[379443786,1755280251620,460.0,0.00027421,60]
[379443787,1755280251673,585.16,0.00027421,60]
[379443788,1755280251706,-153.0,0.00024696,2]
[379443789,1755280251716,-153.0,0.00024696,2]
[379443790,1755280251726,-153.0,0.00024696,2]
[379443791,1755280251736,-153.0,0.00024696,2]
[379443792,1755280251745,-153.0,0.00024696,2]
[379443793,1755280251755,-3552.54808494,0.000249,2]
[379443794,1755280251766,-470.8,0.000249,2]
[379443795,1755280251779,-480906.4275374,0.000249,2]
[379443796,1755280251788,-218.33475465,0.00024904,2]
[379443797,1755280251798,-548.65669777,0.00024931,2]
[379443798,1755280251807,-151.0,0.00024932,2]
[379443799,1755280251816,-699.0,0.00024932,2]
[379443800,1755280251826,-938.16,0.00024959,7]
[379443801,1755280251835,-157.34,0.00025,5]
[379443802,1755280251846,-160.0,0.00025,7]
[379443803,1755280251855,-232.08354597,0.00025,7]
[379443804,1755280251865,-160.0,0.00025,7]
[379443805,1755280251875,-216.77912109,0.00025,7]
[379443806,1755280251885,-589.05297874,0.00025,4]
[379443807,1755280251894,-160.0,0.00025,7]
[379443808,1755280251904,-843.47195277,0.00025,7]
[379443809,1755280251913,-417.15472785,0.00025,7]
[379443810,1755280251922,-938.16,0.00025059,7]
[379443811,1755280251931,-16461.0398979,0.00025061,2]
[379443812,1755280251941,-1360.0,0.0002509,2]
[379443813,1755280251950,-150.2,0.00025147,6]
[379443814,1755280251962,-938.16,0.00025159,7]
[379443815,1755280251973,-642.29484502,0.00025205,2]
[379443816,1755280251983,-151.0,0.00025206,2]
[379443817,1755280251993,-699.0,0.00025206,2]
[379443818,1755280252002,-938.16,0.00025259,7]
[379443819,1755280252011,-28707.74,0.000253,2]
[379443820,1755280252022,-3772.24279049,0.00025321,2]
[379443821,1755280252032,-6000.0,0.00025327,2]
[379443822,1755280252041,-1700.0,0.00025337,2]
[379443823,1755280252053,-938.16,0.00025359,7]
[379443824,1755280252063,-1000.0,0.00025421,5]
[379443825,1755280252072,-938.16,0.00025459,7]
[379443826,1755280252081,-224.42205432,0.0002548,2]
[379443827,1755280252091,-699.0,0.0002548,2]
[379443828,1755280252100,-172.082066,0.0002548,7]
[379443829,1755280252110,-250.0,0.000255,7]
[379443830,1755280252119,-250.0,0.000255,7]
[379443831,1755280252128,-390.4,0.000255,7]
[379443832,1755280252138,-938.16,0.00025559,7]
[379443833,1755280252147,-16461.0398979,0.00025577,3]
[379443834,1755280252156,-1460.0,0.00025638,2]
[379443835,1755280252166,-938.16,0.00025659,7]
[379443836,1755280252175,-800.0,0.00025675,2]
[379443837,1755280252186,-1029.54,0.00025724,2]
[379443838,1755280252196,-150.2,0.0002574,6]
[379443839,1755280252206,-699.0,0.00025754,2]
[379443840,1755280252215,-938.16,0.00025759,7]
[379443841,1755280252225,-200.0,0.00025775,7]
[379443842,1755280252235,-800.0,0.00025786,2]
[379443843,1755280252245,-2000.0,0.000258,2]
[379443844,1755280252254,-938.16,0.00025859,7]
[379443845,1755280252264,-6500.0,0.00025875,2]
[379443846,1755280252273,-200.0,0.0002592,14]
[379443847,1755280252282,-938.16,0.00025959,7]
[379443848,1755280252294,-5588.52,0.00026,7]
[379443849,1755280252303,-160.0,0.00026,3]
[379443850,1755280252313,-160.0,0.00026,3]
[379443851,1755280252322,-216.77912109,0.00026,3]
[379443852,1755280252331,-215.63758983,0.00026,3]
[379443853,1755280252341,-417.15472785,0.00026,3]
[379443854,1755280252352,-1905.51955852,0.0002601,2]
[379443855,1755280252362,-1072.192,0.00026024,2]
[379443856,1755280252371,-500.0,0.00026027,2]
[379443857,1755280252382,-699.0,0.00026028,2]
[379443858,1755280252395,-800.0,0.00026043,2]
[379443859,1755280252412,-938.16,0.00026059,7]
[379443860,1755280252421,-972.0,0.00026064,2]
[379443861,1755280252431,-408.0,0.00026064,2]
[379443862,1755280252441,-2152.0,0.00026064,2]
[379443863,1755280252451,-636.0,0.00026064,2]
[379443864,1755280252460,-16461.0398979,0.00026094,4]
[379443865,1755280252470,-175.75,0.000261,7]
[379443866,1755280252480,-1072.192,0.00026124,2]
[379443867,1755280252489,-938.16,0.00026159,7]
[379443868,1755280252499,-500.0,0.0002616,10]
[379443869,1755280252509,-1560.0,0.00026186,2]
[379443870,1755280252519,-1072.192,0.00026224,2]
[379443871,1755280252529,-938.16,0.00026259,7]
[379443872,1755280252539,-699.0,0.00026302,2]
[379443873,1755280252549,-1072.192,0.00026324,2]
[379443874,1755280252559,-150.2,0.00026333,7]
[379443875,1755280252569,-938.16,0.00026359,7]
[379443876,1755280252578,-3641.93147767,0.00026378,3]
[379443877,1755280252587,-500.0,0.00026384,10]
[379443878,1755280252597,-200.0,0.00026408,20]
[379443879,1755280252606,-200.0,0.00026408,20]
[379443880,1755280252616,-200.0,0.00026408,20]
[379443881,1755280252625,-200.0,0.00026408,20]
[379443882,1755280252635,-200.0,0.00026408,20]
[379443883,1755280252647,-200.0,0.00026408,20]
[379443884,1755280252659,-200.0,0.00026408,20]
[379443885,1755280252669,-200.0,0.00026408,20]
[379443886,1755280252679,-200.0,0.00026408,20]
[379443887,1755280252688,-200.0,0.00026408,20]
[379443888,1755280252698,-200.0,0.00026408,20]
[379443889,1755280252707,-200.0,0.00026408,20]
[379443890,1755280252717,-200.0,0.00026408,20]
[379443891,1755280252727,-200.0,0.00026408,20]
[379443892,1755280252736,-200.0,0.00026408,20]
[379443893,1755280252746,-200.0,0.00026408,20]
[379443894,1755280252755,-200.0,0.00026408,20]
[379443895,1755280252765,-200.0,0.00026408,20]
[379443896,1755280252775,-200.0,0.00026408,20]
[379443897,1755280252784,-200.0,0.00026408,20]
[379443898,1755280252795,-200.0,0.00026408,20]
[379443899,1755280252805,-200.0,0.00026408,20]
[379443900,1755280252815,-208.0,0.00026408,20]
[379443901,1755280252824,-1777.1969134,0.00026423,2]
[379443902,1755280252834,-1072.192,0.00026424,2]
[379443903,1755280252843,-1700.0,0.00026433,2]
[379443904,1755280252853,-938.16,0.00026459,7]
[379443905,1755280252863,-2066.84,0.00026511,2]
[379443906,1755280252872,-1072.192,0.00026524,2]
[379443907,1755280252881,-938.16,0.00026559,7]
[379443908,1755280252891,-699.0,0.00026576,2]
[379443909,1755280252900,-5000.0,0.0002658,30]
[379443910,1755280252910,-5000.0,0.0002658,30]
[379443911,1755280252920,-5000.0,0.0002658,30]
[379443912,1755280252929,-5000.0,0.0002658,30]
[379443913,1755280252938,-5000.0,0.0002658,30]
[379443914,1755280252948,-5000.0,0.0002658,30]
[379443915,1755280252958,-5000.0,0.0002658,30]
[379443916,1755280252968,-800.0,0.00026585,2]
[379443917,1755280252981,-800.0,0.0002659,2]
[379443918,1755280252990,-18194.97,0.000266,7]
[379443919,1755280253000,-16461.0398979,0.0002661,5]
[379443920,1755280253010,-1072.192,0.00026624,2]
[379443921,1755280253021,-800.0,0.00026635,2]
[379443922,1755280253030,-938.16,0.00026659,7]
[379443923,1755280253040,-250.0,0.000267,7]
[379443924,1755280253052,-250.0,0.000267,7]
[379443925,1755280253062,-182.526978,0.00026712,2]
[379443926,1755280253072,-1072.192,0.00026724,2]
[379443927,1755280253081,-1660.0,0.00026733,2]
[379443928,1755280253090,-208.0,0.0002674,2]
[379443929,1755280253100,-207.0,0.0002674,2]
[379443930,1755280253110,-800.0,0.00026751,2]
[379443931,1755280253119,-938.16,0.00026759,7]
[379443932,1755280253129,-5503.31465443,0.00026769,10]
[379443933,1755280253139,-5000.0,0.00026769,11]
[379443934,1755280253148,-5000.0,0.00026769,7]
[379443935,1755280253158,-5000.0,0.00026769,12]
[379443936,1755280253167,-5000.0,0.00026769,9]
[379443937,1755280253177,-1041.9,0.000268,2]
[379443938,1755280253187,-1072.192,0.00026824,2]
[379443939,1755280253196,-699.0,0.0002685,2]
[379443940,1755280253206,-938.344,0.00026859,7]
[379443941,1755280253216,-150.2,0.00026927,7]
[379443942,1755280253227,-160.0,0.00027,7]
[379443943,1755280253236,-232.08354597,0.00027,3]
[379443944,1755280253246,-232.08354597,0.00027,30]
[379443945,1755280253255,-232.08354597,0.00027,7]
[379443946,1755280253265,-528.28344625,0.00027,3]
[379443947,1755280253274,-528.28344625,0.00027,30]
[379443948,1755280253284,-160.0,0.00027,3]
[379443949,1755280253293,-160.0,0.00027,30]
[379443950,1755280253302,-160.0,0.00027,30]
[379443951,1755280253312,-216.77912109,0.00027,30]
[379443952,1755280253321,-216.77912109,0.00027,7]
[379443953,1755280253331,-160.0,0.00027,3]
[379443954,1755280253340,-160.0,0.00027,30]
[379443955,1755280253351,-462.0440047,0.00027,3]
[379443956,1755280253360,-160.0,0.00027,7]
[379443957,1755280253371,-843.47195277,0.00027,3]
[379443958,1755280253381,-843.47195277,0.00027,30]
[379443959,1755280253390,-843.47195277,0.00027,7]
[379443960,1755280253399,-417.15472785,0.00027,30]
[379443961,1755280253409,-417.15472785,0.00027,7]
[379443962,1755280253419,-431.7990331,0.000271,2]
[379443963,1755280253428,-431.7990331,0.000271,2]
[379443964,1755280253437,-431.7990331,0.000271,2]
[379443965,1755280253447,-431.7990331,0.000271,2]